Cogmind - Beta 14 @@@ ROGUE MODE // 2024.09.20 @ 19:59:22 Player: Carbisari Result: Destroyed by S-27 Virus with Autogun Performance ------------- Evolutions (3) 1500 Regions Visited (4) 800 Robots Destroyed (36) 180 Value Destroyed (1416) 1416 Prototype IDs (1) 20 Alien Tech Used (0) 0 Bonus (0) 0 TOTAL SCORE: 3916 Bonus ------- None Cogmind --------- Core Integrity 0/700 Matter 450/450 Energy 100/100 System Corruption 10% Temperature Cool (0) Movement Walking (330) Ox3 Location -7/Factory Parts ------- > --- POWER (2) -------- (None) > --- PROPULSION (3) --- Aluminum Leg > --- UTILITY (5) ------ Small Storage Unit Large Storage Unit Compact Matter Pod > --- WEAPON (3) ------- Flak Gun Mace > --- INVENTORY (15) --- Improved Heat Sink Relay Coupler [Hunter] (13) Arc Projector Arc Projector Peak State ------------ > --- POWER ------------ Light Nuclear Core Light Nuclear Core > --- PROPULSION ------- Armored Wheel > --- UTILITY ---------- Large Storage Unit Insulated Plating Insulated Plating Insulated Plating Insulated Plating > --- WEAPON ----------- Heavy Particle Cannon Flak Cannon Mace > --- INVENTORY -------- Carbon-fiber Leg Small Storage Unit Compact Matter Pod Shield Generator Arc Projector Arc Projector Assault Rifle Mace [Rating: 31] Favorites ----------- Power Light Nuclear Core Engine Light Ion Engine Power Core Light Nuclear Core Propulsion Light Treads Treads Light Treads Leg Aluminum Leg Wheel Armored Wheel Utility Insulated Plating Device Shield Generator Storage Small Storage Unit Protection Insulated Plating Weapon Mace Energy Gun Small Laser Energy Cannon Heavy Particle Cannon Ballistic Gun Assault Rifle Ballistic Cannon Flak Cannon Launcher Grenade Launcher Impact Weapon Mace Build | -11 -10 -9 -8 -7 ------- Run | Yrd Mat Mat Mat Fac Slots Evolved 6 | . . 2 2 2 Power 1 | . . . 1 . Propulsion 1 | . . . . 1 Utility 3 | . . 1 1 1 Weapon 1 | . . 1 . . Parts Attached 51 | 6 8 11 5 21 Power 6 | 1 2 . 1 2 Engine 4 | 1 1 . 1 1 Core 2 | . 1 . . 1 Reactor . | . . . . . Propulsion 9 | 2 . 2 . 5 Treads 2 | 2 . . . . Leg 4 | . . 2 . 2 Wheel 3 | . . . . 3 Hover . | . . . . . Flight . | . . . . . Utility 18 | 1 4 5 1 7 Device 3 | . 1 . . 2 Storage 7 | 1 1 1 . 4 Processor . | . . . . . Hackware . | . . . . . Protection 8 | . 2 4 1 1 Artifact . | . . . . . Weapon 18 | 2 2 4 3 7 Energy Gun 7 | 1 . 1 1 4 Energy Cannon 1 | . . . 1 . Ballistic Gun 3 | 1 . . . 2 Ballistic Cannon 3 | . 1 1 1 . Launcher 1 | . 1 . . . Special Weapon . | . . . . . Impact Weapon 3 | . . 2 . 1 Slashing Weapon . | . . . . . Piercing Weapon . | . . . . . Special Melee Weapon . | . . . . . Unidentified Prototypes 1 | . . . 1 . Parts Lost 24 | . 1 . 1 22 Power 3 | . . . . 3 Propulsion 4 | . . . . 4 Utility 9 | . 1 . . 8 Weapon 8 | . . . 1 7 Highest Loss Streak 13 | . 1 . 1 13 To Critical Strikes . | . . . . . Average Slot Usage (%) 83 | . 96 98 91 62 Engine 3 | . 11 . . 1 Core 6 | . 2 11 9 4 Treads 7 | . 28 8 . . Leg 7 | . . 12 18 2 Wheel 1 | . . . . 5 Device 1 | . 2 . . 2 Storage 13 | . 15 11 9 16 Protection 15 | . 6 21 27 8 Energy Gun 5 | . 10 6 5 3 Energy Cannon 1 | . . . 1 3 Ballistic Gun 3 | . 12 . . 2 Ballistic Cannon 4 | . 1 7 8 3 Launcher 3 | . 4 11 2 . Impact Weapon 5 | . . 6 9 6 Peak Build Rating 31 | 6 9 18 25 31 Average Rating 14 | 5 7 16 22 19 On Entrance 11 | . 6 9 18 25 Naked Turns . | . . . . . Heaviest Build 56 | 11 19 39 53 56 Greatest Support 40 | 40 40 40 20 22 Greatest Overweight (x) 10 | . . 1 2 10 Average Overweight (x) 1 | . . . 2 2 Largest Inventory Capacity 15 | 8 8 15 15 15 Average Capacity 11 | 7 8 9 15 15 Most Carried 11 | 6 8 8 8 11 Average Carried 6 | 4 6 6 6 6 Final Capacity 15 | 8 8 15 15 15 Final Carried 8 | 5 7 7 8 4 Class Distribution -------------------- 93% | Mutant 6% | Tank Dominant Class ---------------- Mutant | -10/Materials Mutant | -9/Materials Mutant | -8/Materials Mutant | -7/Factory Resources | -11 -10 -9 -8 -7 ----------- Run | Yrd Mat Mat Mat Fac Matter Collected 1406 | 229 157 230 75 715 Remotely . | . . . . . Salvage Created 1044 | . 241 210 75 518 Parts 46 | . 17 12 2 15 Haulers Intercepted . | . . . . . Recyclers Shooed . | . . . . . Parts Field Recycled . | . . . . . Retrieved Matter . | . . . . . Parts Self-Destructed . | . . . . . Prevented . | . . . . . Kills | -11 -10 -9 -8 -7 ------- Run | Yrd Mat Mat Mat Fac Combat Hostiles Destroyed 30 | . 8 5 2 15 Melee 3 | . . 2 . 1 Guns 15 | . 7 . 1 7 Cannons 9 | . 1 2 1 5 AOE 1 | . . 1 . . Classes Destroyed 8 | . 4 2 . 2 Worker 2 | . 1 . . 1 Watcher 4 | . 2 2 . . Swarmer 3 | . 3 . . . Grunt 15 | . 5 2 . 8 Brawler 1 | . . 1 . . Sentry 5 | . . 2 2 1 Hunter 2 | . . . . 2 Programmer 4 | . . . . 4 Best Kill Streak 3 | . 3 2 2 3 Combat Bots Only 3 | . 3 2 2 3 Max Kills in Single Turn 1 | . 1 1 1 1 Gunslinging . | . . . . . Exploded 1 | . . 1 . . Melee 1 | . . 1 . 1 Uniques/NPCs Destroyed . | . . . . . Combat | -11 -10 -9 -8 -7 -------- Run | Yrd Mat Mat Mat Fac Hostile Shots Fired 378 | . 45 19 10 304 Missed 97 | . 13 4 1 79 Damage Taken 3892 | . 582 222 138 2950 Core 904 | . 152 29 13 710 Absorbed by Shields 150 | . . . . 150 Regen/Repaired (Parts) 59 | . . 59 . . Core Remaining (%) 82 | 100 39 92 97 . Volleys Fired 95 | 1 33 11 5 45 Largest 3 | 2 2 2 2 3 Hottest 150 | 60 65 70 109 150 Shots Fired 172 | 2 63 18 7 82 Gun 100 | 2 49 . 2 47 Cannon 57 | . 3 14 5 35 Launcher 15 | . 11 4 . . Special . | . . . . . Kinetic 81 | 1 30 14 5 31 Thermal 76 | 1 22 . 2 51 Explosive 15 | . 11 4 . . Electromagnetic . | . . . . . Robot Hit Streak 12 | . 8 10 7 12 Robot Miss Streak 5 | . 2 2 2 5 Penetration Max . | . . . . . Secondary Targets 1 | . . . . 1 Max Gunslinging Chain 1 | . . . . 1 Shots Hit Robots 155 | . 41 15 5 94 Core Hits 105 | . 17 8 7 73 Critical Kills 2 | . . 1 . 1 Critical Parts Destroyed 5 | . . 1 . 4 Critical Strikes 8 | . . 2 . 6 Smash 8 | . . 2 . 6 Melee Attacks 30 | . . 4 . 26 Impact 30 | . . 4 . 26 Slashing . | . . . . . Piercing . | . . . . . Sneak Attacks 1 | . . . . 1 Combat Hostiles . | . . . . . Follow-up Attacks . | . . . . . Damage Inflicted 3542 | . 863 462 128 2089 Guns 1211 | . 391 . 18 802 Cannons 844 | . 40 203 110 491 Explosions 555 | . 432 123 . . Melee 926 | . . 136 . 790 Ramming 6 | . . . . 6 Kinetic 959 | . 246 203 110 400 Thermal 1195 | . 284 . 18 893 Explosive 456 | . 333 123 . . Electromagnetic . | . . . . . Impact 926 | . . 136 . 790 Slashing . | . . . . . Piercing . | . . . . . Highest Corruption 10 | . . . 5 10 Average Corruption 6 | . . . 5 7 Corruption Purged . | . . . . . Corruption Blocked . | . . . . . Effects 26 | . . . 15 11 Message Errors 4 | . . . 2 2 Matter Fused 13 | . . . 8 5 Heat Flow Errors 2 | . . . 1 1 Energy Discharges 2 | . . . 1 1 Data Loss (minor) 4 | . . . 2 2 Data Loss (major) 1 | . . . 1 . Overload Shots . | . . . . . Overflow Damage 335 | . 51 66 . 218 Projectiles . | . . . . . Explosions 61 | . 51 10 . . Melee 274 | . . 56 . 218 Knockbacks 12 | . . . . 12 Impact 3 | . . . . 3 Kinetic 8 | . . . . 8 Secondary 1 | . . . . 1 Self-Inflicted Damage 173 | . 173 . . . Shots 6 | . 6 . . . Rammed . | . . . . . Targets Rammed 5 | . . . . 5 Kicked 5 | . . . . 5 Crushed . | . . . . . Highest Temperature 390 | . 231 306 281 390 Average Temperature 119 | . 73 116 116 137 Received Heat Transfer 816 | . 177 75 36 528 Effects 8 | . . 1 . 7 Shutdowns 2 | . . . . 2 Energy Bleed 1 | . . . . 1 Interference 5 | . . 1 . 4 Siege Activations . | . . . . . Robots Corrupted 3 | . . 1 . 2 Combat Hostiles 1 | . . . . 1 Parts Fried . | . . . . . Impact Corruptions 12 | . . 2 . 10 Robots Melted . | . . . . . Combat Hostiles . | . . . . . Parts Melted 2 | . . . . 2 Heat Transferred 1789 | . 475 . 37 1277 Parts Sabotaged . | . . . . . Parts Stolen . | . . . . . Parts Stripped . | . . . . . Power Chain Reactions . | . . . . . Alert | -11 -10 -9 -8 -7 ------- Run | Yrd Mat Mat Mat Fac Peak Influence 270 | . 270 209 118 130 Initial 113 | . . 113 53 . Average 66 | . 99 142 51 58 Maximum Alert Level 1 | . 1 1 . . Low Security (%) 96 | 100 87 92 100 100 Level 1 3 | . 12 7 . . Level 2 . | . . . . . Level 3 . | . . . . . Level 4 . | . . . . . Level 5 . | . . . . . High Security . | . . . . . Max Security . | . . . . . Squads Dispatched 4 | . 1 1 . 2 Investigation . | . . . . . Extermination 1 | . . . . 1 Reinforcement 3 | . 1 1 . 1 Assault . | . . . . . Garrison . | . . . . . Intercept . | . . . . . Searches Triggered . | . . . . . Construction Impeded . | . . . . . Haulers Reinforced 1 | . . . . 1 Active Scanning Responses . | . . . . . Cargo Convoy Interrupts . | . . . . . Stealth | -11 -10 -9 -8 -7 --------- Run | Yrd Mat Mat Mat Fac Distress Signals 4 | . 1 1 . 2 Communications Jammed . | . . . . . Distress Signals . | . . . . . Times Spotted 49 | . 17 7 2 23 Peak Tracking Total 4 | . 4 2 2 4 Tactical Retreats 4 | . 2 . . 2 Traps | -11 -10 -9 -8 -7 ------- Run | Yrd Mat Mat Mat Fac Traps Triggered 1 | . 1 . . . Indirectly . | . . . . . Trap Hack Attempts . | . . . . . Triggered . | . . . . . Disarmed . | . . . . . Reprogrammed . | . . . . . Reused . | . . . . . Traps Extracted . | . . . . . Installed . | . . . . . Triggered . | . . . . . Machines | -11 -10 -9 -8 -7 ---------- Run | Yrd Mat Mat Mat Fac Machines Disabled 5 | . 2 2 . 1 Max in Single Turn 2 | . 2 1 . 1 Machines Repaired . | . . . . . Machines Dismantled . | . . . . . Machines Sabotaged . | . . . . . Overloaded Fab Kills . | . . . . . Hacking | -11 -10 -9 -8 -7 --------- Run | Yrd Mat Mat Mat Fac Machines Accessed 5 | . 2 2 . 1 Terminals 1 | . 1 . . . Fabricators . | . . . . . Repair Stations 1 | . . 1 . . Recycling Units 1 | . 1 . . . Scanalyzers 2 | . . 1 . 1 Garrison Access . | . . . . . Total Hacks 15 | . 7 6 . 2 Successful 13 | . 5 6 . 2 Failed 2 | . 2 . . . Catastrophic . | . . . . . Database Lockouts . | . . . . . Manual 1 | . . . 1 . Terminals 5 | . 5 . . . Fabricators . | . . . . . Repair Stations 2 | . . 2 . . Recycling Units 2 | . 2 . . . Scanalyzers 6 | . . 4 . 2 Garrison Access . | . . . . . Terminal Hacks 3 | . 3 . . . Record 3 | . 3 . . . Fabricator Hacks . | . . . . . Repair Station Hacks 2 | . . 2 . . Scan Component 1 | . . 1 . . Repair 1 | . . 1 . . Recycling Unit Hacks 2 | . 2 . . . Recycle Component 1 | . 1 . . . Process 1 | . 1 . . . Scanalyzer 6 | . . 4 . 2 Insert Component 3 | . . 2 . 1 Analyze 3 | . . 2 . 1 Garrison Access Hacks . | . . . . . Unauthorized Hacks . | . . . . . Terminals . | . . . . . Fabricators . | . . . . . Repair Stations . | . . . . . Recycling Units . | . . . . . Scanalyzers . | . . . . . Garrison Access . | . . . . . Data Cores Recovered . | . . . . . Used . | . . . . . Hacking Detections 3 | . 2 1 . . Full Trace Events . | . . . . . Feedback Events . | . . . . . Feedback Blocked . | . . . . . Robot Schematics Acquired . | . . . . . Robots Built . | . . . . . Authchips . | . . . . . Time . | . . . . . Total Robot Build Rating . | . . . . . Part Schematics Acquired 3 | . . 2 . 1 Parts Built . | . . . . . Authchips . | . . . . . Time . | . . . . . Total Part Build Rating . | . . . . . Parts Repaired 1 | . . 1 . . Time 38 | . . 38 . . Parts Recycled 1 | . 1 . . . Recycled Matter . | . . . . . Retrieved Matter . | . . . . . Retrieved Components . | . . . . . Parts Scanalyzed 3 | . . 2 . 1 Part Schematics Acquired 3 | . . 2 . 1 Parts Damaged . | . . . . . Bothacking | -11 -10 -9 -8 -7 ------------ Run | Yrd Mat Mat Mat Fac Used RIF Installer . | . . . . . Robots Hacked . | . . . . . Non-combat . | . . . . . Combat . | . . . . . Robot Hacks Applied . | . . . . . Relay Couplers Released 3 | . . . . 3 Programmers 3 | . . . . 3 Fabnet Peak Effective % . | . . . . . Robots Rewired . | . . . . . Allies Hacked . | . . . . . Hacks Repelled . | . . . . . Allies | -11 -10 -9 -8 -7 -------- Run | Yrd Mat Mat Mat Fac Total Allies . | . . . . . Largest Group . | . . . . . Highest-Rated Group . | . . . . . Highest-Rated Ally . | . . . . . Total Orders . | . . . . . Ally Attacks . | . . . . . Total Damage . | . . . . . Kills . | . . . . . Allies Corrupted . | . . . . . Allies Melted . | . . . . . Intel | -11 -10 -9 -8 -7 ------- Run | Yrd Mat Mat Mat Fac Robot Analysis Total . | . . . . . Derelict Logs Recovered . | . . . . . Drone Launches . | . . . . . Drone Recoveries . | . . . . . Exploration | -11 -10 -9 -8 -7 ------------- Run | Yrd Mat Mat Mat Fac Turns Passed 3550 | 716 625 571 655 983 Spaces Moved 1633 | 446 301 248 243 395 Core 25 | 15 . . . 10 Treads 841 | 431 301 109 . . Legs 455 | . . 139 243 73 Wheels 312 | . . . . 312 Hover . | . . . . . Flight . | . . . . . Fastest Speed 50 | 50 160 160 260 115 Average Speed 179 | 156 160 176 260 173 Slowest Speed 550 | 160 160 190 260 550 Overloaded Moves . | . . . . . Propulsion Burnouts . | . . . . . Robots Hopped . | . . . . . Cave-ins Triggered . | . . . . . Exploration Rate (%) 24 | 28 43 23 20 9 Regions Visited 4 Branch Regions . Pre-discovered Areas . | . . . . . Known Exits Taken . | . . . . . Unknown Exits Taken 4 | 1 1 1 1 . Scrap Searched . | . . . . . Spaces Dug . | . . . . . Terrain Destroyed 109 | . 90 19 . . Melee . | . . . . . Projectile . | . . . . . AOE 109 | . 90 19 . . Terrain Rammed . | . . . . . Walls Destroyed . | . . . . . Machines Disabled . | . . . . . Actions | -11 -10 -9 -8 -7 --------- Run | Yrd Mat Mat Mat Fac Total 2036 | 465 385 360 262 564 Wait 141 | . 23 66 . 52 Move 1629 | 445 300 247 242 395 Hop . | . . . . . Pick Up 58 | 12 12 11 6 17 Fast Attach . | . . . . . Attach 46 | 6 5 9 5 21 Detach 5 | . 2 2 1 . Swap 5 | . 3 2 . . Drop 22 | 1 7 8 3 3 Fire 95 | 1 33 11 5 45 Melee 30 | . . 4 . 26 Ram . | . . . . . Kick 5 | . . . . 5 Crush . | . . . . . Escape Stasis . | . . . . . Rewire . | . . . . . Trap . | . . . . . Miscellaneous . | . . . . . Route ------- -11/Scrapyard -10/Materials -9/Materials -8/Materials -7/Factory History --------- Turn | Location | Event 10 | -11/Scrapyard | Discovered new exit (range 16) 717 | -11/Scrapyard | Entered Materials 718 | -10/Materials | Build established: Mutant 1171 | -10/Materials | Core integrity fell below 50% 1306 | -10/Materials | Discovered new exit (range 9) 1342 | -10/Materials | Entered another Materials area 1342 | -9/Materials | Evolved 2 slots: Utility x1, Weapon x1 1671 | -9/Materials | Repaired Insulated Plating 1841 | -9/Materials | Discovered new exit (range 7) 1913 | -9/Materials | Entered another Materials area 1913 | -8/Materials | Evolved 2 slots: Power x1, Utility x1 2560 | -8/Materials | Discovered new exit (range 3) 2568 | -8/Materials | Entered Factory 2568 | -7/Factory | Evolved 2 slots: Propulsion x1, Utility x1 2854 | -7/Factory | Lost 4 parts (1p3u) 3106 | -7/Factory | Core integrity fell below 50% 3179 | -7/Factory | Lost 13 parts (1p3n4u5w) 3182 | -7/Factory | Core integrity fell below 20% 3370 | -7/Factory | System corruption reached 10% 3410 | -7/Factory | Lost 3 parts (1p1n1w) 3551 | -7/Factory | Destroyed by S-27 Virus with Autogun Last Messages --------------- Computer. 03387_ R-06 Scavenger collects Imp. Heat Sink. 03391_ R-06 Scavenger collects Remote Datajack. 03398_ Acquired 56 matter. 03399_ K-01 Serf collects debris. 03401_ Acquired 22 matter. 03403_ K-01 Serf collects debris. 03408_ Sneak attack on K-01 Serf. 03408_ Destroyed Med. Matter Pod. 03408_ Destroyed Wheel. 03408_ K-01 Serf system corrupted by crushing effect. 03408_ K-01 Serf knocked back. 03409_ K-01 Serf system terminally corrupted. 03414_ Acquired 18 matter. 03417_ J/ZK5|D1&W LGIDUG5|1F TLNALQK:J 03443_ System corrupted: Heat flow error (+124). 03471_ System corrupted: Energy discharge (-32). 03488_ System corrupted: Component data lost. 03511_ TFA%V=Z&HUPK28OIXSAP6Y6WM|WNLL0Q8XXK1 Map ----- +----------------------------------------------------+ | " #??????????????????????????????????????????????? | | #??????????????????????????????????????????????? | | #??????????????????????????????????????????????? | | ######################???????????????????????????? | | # #???????????????????????????? | | """ # #???????????????????????????? | | """" # """" """" #???????????????????????????? | | """" #???""" """" #???????????????????????????? | | #??"""" """" #???????????????????????????? | | """ # """" """" #???????????????????????????? | | """" [ # #???????????????????????????? | | """" # """" """" #???????????????????????????? | | # """" """ #???????????????????????????? | | # """" """ #???????????????????????????? | | # """" " #????##############?????????? | | # % #????# #?????????? | | #####+########+############ #?????????? | | # """""" #?????????? | | # """""" #?????????? | | # """""" #?????????? | | # """""" !#?????????? | | + #?????????? | | # """""" #?????????? | | # """""" #?????????? | | ################### # """""" #?????????? | | ??????????????????# @# """""" #?????????? | | ??????????????????# # #?????????? | | ??????????????????# ##############?????????? | | ??????????????????# #??????????????????????? | | ??????????????????# #??????????????????????? | | ????????????????? + #??????????????????????? | | ???????????????"" #u #??????????????????????? | | ??????????????? #^ #??????????????????????? | | ??????????????###?# ^ #??????????????????????? | | ??????????????????# #??????????????????????? | | ??????????????????# u???????????????????????? | | ??????????????????# ???????????????????????? | | ??????????????????# ???????????????????????? | | ??????????????????# ???????????????????????? | | ??????????????????+ ???????????????????????? | | ????????????????????? ???????????????????????? | | ??????????????????????? ???????????????????????? | | ?????????????????????????????????????????????????? | | ?????????????????????????????????????????????????? | | ?????????????????????????????????????????????????? | | ?????????????????????????????????????????????????? | | ?????????????????????????????????????????????????? | | ?????????????????????????????????????????????????? | | ?????????????????????????????????????????????????? | | ?????????????????????????????????????????????????? | +----------------------------------------------------+ Best States ------------- Heat Dissipation 34 Energy Generation 23 Energy Capacity 410 Matter Stores 450 Matter Capacity 450 Sight Range 16 Terrain Scan Density 10 Armor Coverage 600 Resistance: EM 15 Power Shielding 33 Evasion (%) 50 Recoil Reduction 2 Item Schematics ----------------- Assault Rifle | -9/Materials | Scanalyzed Insulated Plating | -9/Materials | Scanalyzed Mace | -7/Factory | Scanalyzed Robot Schematics ------------------ None Fabricated ------------ Nothing Alien Tech Used ----------------- None Achievements -------------- None Challenges ------------ None Game ------ Seed BottomlessDisposableTrap Manual? 0 Play Time 01:02:57 Cumulative 9.7 hours Start 2024.09.20 @ 18:48:21 End 2024.09.20 @ 19:59:22 Sessions 1 Manual Loads 0 Difficulty Rogue Special Mode None Game No. 14 Rogue 14 Adventurer 0 Explorer 0 Win Type - Total 0 Types 0/0/0/0/0/0/0/0/0 Lore% 5 Gallery% 12 Achievement% 15 Wizard Run 0 Options --------- Layout 1 ASCII 0 Keyboard 0 Movement Numpad Keybinds 0 Fullscreen 1 Font 24/Smallcaps Map View 50x35 Zoom Use 0% Tactical HUD 1 Map Filters NONE Filters NONE Steam 1 RUN: bb2f72b1-d67d-47eb-8dfb-8a7d3e7a07a2